Cogmind - Beta 10.2 @@@ ROGUE MODE // 2021.02.11 @ 17:46:28 Player: Demise Result: Destroyed by G-67 Veteran with Plasma Rifle Performance ------------- Evolutions (5) 2500 Regions Visited (24) 4800 Robots Destroyed (143) 715 Value Destroyed (4302) 4302 Prototype IDs (71) 1420 Alien Tech Used (1) 200 Bonus (1795) 1795 TOTAL SCORE: 15732 Bonus ------- High Alert Combat Kills 379 Follower Combat Kills 157 Entered Garrisons 200 Aligned with FarCom 300 Met Data Miner 300 Met Warlord at Base 500 MAIN.C Attacked Warlord 500 Friendly Fire -541 Cogmind --------- Core Integrity 0/1000 Matter 280/300 Energy 194/700 System Corruption 0% Temperature Cool (12) Movement Core (750) Ox14 Location -4/Proximity Caves Parts ------- > --- POWER (2) -------- Vortex Chain Reactor > --- PROPULSION (4) --- (None) > --- UTILITY (10) ----- Medium Storage Unit Spectral Analyzer Advanced Signal Interpreter > --- WEAPON (2) ------- (None) > --- INVENTORY (8) ---- Micro Nuclear Core Experimental Transmission Jammer Powered Armor Self-destruct Interrupter (50) Peak State ------------ > --- POWER ------------ Micro Nuclear Core Micro Fission Core > --- PROPULSION ------- Nuclear Pulse Thruster Experimental Cesium-ion Thruster Experimental Cesium-ion Thruster Improved Diametric Drive > --- UTILITY ---------- Medium Storage Unit Spectral Analyzer Advanced Signal Interpreter Thermal Barrier Advanced Hacking Suite Advanced Hacking Suite Advanced Hacking Suite Advanced Hacking Suite System Mapper Advanced System Shield > --- WEAPON ----------- Precision Grenade Launcher Longsword +1 > --- INVENTORY -------- Nuclear Pulse Thruster Fusion Compressor Experimental Transmission Jammer Powered Armor Powered Armor Improved Force Field Advanced Plasma Cannon Self-destruct Interrupter [Rating: 117] Favorites ----------- Power Micro Nuclear Core Engine Cooled Ion Engine Power Core Micro Nuclear Core Reactor Vortex Chain Reactor Propulsion Light Treads Treads Light Treads Flight Unit Improved VTOL Module Utility High-capacity Storage Unit Device Structural Scanner Storage High-capacity Storage Unit Processor Advanced Signal Interpreter Hackware Advanced Hacking Suite Protection Improved Light Armor Plating Weapon Longsword +1 Energy Gun Small Laser Energy Cannon Advanced Plasma Cannon Ballistic Gun Assault Rifle Launcher Grenade Launcher Special Weapon Mining Laser Slashing Weapon Longsword +1 Special Melee Weapon Improved Datajack Build | -11 -10 -10 -10 -9 -8 -8 -8 -7 -7 -7 -7 -7 -7 -6 -6 -6 -6 -6 -5 -5 -5 -5 -5 -4 ------- Run | Scr Mat Min Exi Min Mat Gar Mat Fac Was Fac Low Low Zio Pro Fac Low Low Dat Pro Fac Upp Upp War Pro Slots Evolved 10 | . . . . . 4 . . 2 . . . . . . 2 . . . . 2 . . . . Power 1 | . . . . . . . . . . . . . . . . . . . . 1 . . . . Propulsion 1 | . . . . . . . . . . . . . . . . . . . . 1 . . . . Utility 8 | . . . . . 4 . . 2 . . . . . . 2 . . . . . . . . . Weapon . | . . . . . . . . . . . . . . . . . . . . . . . . . Parts Attached 191 | 4 22 5 4 . 26 1 26 29 . 4 . 2 6 . 13 1 1 . 1 20 7 3 9 7 Power 16 | . 3 1 . . 3 . 2 1 . . . . . . . . . . 1 4 . . . 1 Engine 6 | . 2 1 . . 2 . 1 . . . . . . . . . . . . . . . . . Core 9 | . 1 . . . 1 . 1 1 . . . . . . . . . . 1 4 . . . . Reactor 1 | . . . . . . . . . . . . . . . . . . . . . . . . 1 Propulsion 28 | 2 5 1 . . 2 . 4 4 . . . . . . 2 . . . . 6 . 1 1 . Treads 16 | 2 5 1 . . 2 . 4 2 . . . . . . . . . . . . . . . . Leg . | . . . . . . . . . . . . . . . . . . . . . . . . . Wheel . | . . . . . . . . . . . . . . . . . . . . . . . . . Hover . | . . . . . . . . . . . . . . . . . . . . . . . . . Flight 12 | . . . . . . . . 2 . . . . . . 2 . . . . 6 . 1 1 . Utility 77 | . 4 . 2 . 10 . 9 10 . 4 . . 6 . 9 . 1 . . 9 4 1 5 3 Device 25 | . 1 . . . 4 . 2 2 . 1 . . 2 . . . 1 . . 3 3 1 3 2 Storage 8 | . 2 . 2 . . . 1 . . . . . . . 1 . . . . 1 . . 1 . Processor 8 | . 1 . . . 3 . . . . . . . 3 . 1 . . . . . . . . . Hackware 21 | . . . . . . . 1 6 . 3 . . 1 . 6 . . . . 3 . . 1 . Protection 15 | . . . . . 3 . 5 2 . . . . . . 1 . . . . 2 1 . . 1 Artifact . | . . . . . . . . . . . . . . . . . . . . . . . . . Weapon 70 | 2 10 3 2 . 11 1 11 14 . . . 2 . . 2 1 . . . 1 3 1 3 3 Energy Gun 8 | 2 3 . . . 1 . 2 . . . . . . . . . . . . . . . . . Energy Cannon 5 | . . . . . . . . 1 . . . . . . . . . . . . 1 . 1 2 Ballistic Gun 26 | . 5 2 1 . 6 . 7 4 . . . . . . 1 . . . . . . . . . Ballistic Cannon . | . . . . . . . . . . . . . . . . . . . . . . . . . Launcher 12 | . 1 . . . 2 1 1 3 . . . . . . . . . . . . 1 . 2 1 Special Weapon 1 | . 1 . . . . . . . . . . . . . . . . . . . . . . . Impact Weapon . | . . . . . . . . . . . . . . . . . . . . . . . . . Slashing Weapon 7 | . . . . . 2 . 1 3 . . . . . . 1 . . . . . . . . . Piercing Weapon . | . . . . . . . . . . . . . . . . . . . . . . . . . Special Melee Weapon 11 | . . 1 1 . . . . 3 . . . 2 . . . 1 . . . 1 1 1 . . Unidentified Prototypes 16 | . . . . . 3 . 1 2 . . . . 3 . . . 1 . . . . . 5 1 Parts Lost 36 | . 1 1 . . . . 11 1 . . . . . . 3 . . . 2 . . . 1 16 Power 2 | . . . . . . . 1 . . . . . . . . . . . 1 . . . . . Propulsion 6 | . . . . . . . 2 . . . . . . . . . . . . . . . . 4 Utility 18 | . . . . . . . 6 . . . . . . . 2 . . . . . . . 1 9 Weapon 10 | . 1 1 . . . . 2 1 . . . . . . 1 . . . 1 . . . . 3 Highest Loss Streak 9 | . 1 1 . . . . 2 1 . . . . . . 1 . . . 2 . . . 1 9 Average Slot Usage (%) 96 | . 98 100 100 100 99 100 92 95 100 99 100 100 99 100 96 93 99 93 88 94 99 100 99 78 Engine 4 | . 1 10 14 14 8 9 5 . . . . . . . . . . . . . . . . . Core 4 | . 11 3 . . . . 1 7 7 7 7 7 7 7 6 6 6 6 5 9 11 11 11 10 Treads 14 | . 28 28 28 28 18 18 17 12 . . . . . . . . . . . . . . . . Flight 5 | . . . . . . . . 2 15 15 15 15 15 15 12 13 12 12 12 19 22 22 22 13 Device 5 | . 1 . . . 17 18 7 . . 5 7 7 6 7 6 6 6 6 6 4 4 5 4 2 Storage 13 | . 15 28 28 28 18 18 18 12 . . . . . . . . . . . 1 5 5 5 5 Processor 8 | . 10 . . . 9 9 9 7 7 7 7 7 7 7 12 13 12 12 12 11 11 11 11 11 Hackware 16 | . . . . . . . . 27 53 46 46 46 46 46 42 46 45 43 43 36 33 33 33 27 Protection 4 | . . . . . 8 9 14 8 . . . . . . . . . . . . . . . . Energy Gun 1 | . 9 . . . . . 1 . . . . . . . . . . . . . . . . . Ballistic Gun 11 | . 17 26 18 28 16 9 15 6 . . . . . . . . . . . . . . . . Slashing Weapon 2 | . . . . . 1 . . 4 7 7 7 7 7 7 5 6 6 6 6 5 5 5 5 2 Special Melee Weapon 2 | . . 1 9 . . . . 1 7 7 7 7 7 7 5 . 6 6 1 4 5 5 2 . Naked Turns . | . . . . . . . . . . . . . . . . . . . . . . . . . Heaviest Build 95 | 3 41 41 72 72 89 87 95 87 10 12 12 12 12 12 20 12 12 12 12 33 38 24 29 65 Greatest Support 57 | 3 40 40 40 40 56 56 57 40 12 12 12 12 12 12 14 14 14 14 14 32 30 30 31 31 Greatest Overweight (x) 21 | . 1 1 1 1 2 1 4 4 . . . . . . 1 . 3 . . 1 1 . . 21 Average Overweight (x) . | . . . . 1 1 1 1 . . . . . . . . . . . . . . . . . Largest Inventory Capacity 20 | 4 16 16 20 20 20 20 20 20 4 4 4 4 4 4 6 4 4 4 4 8 8 8 8 8 Average Capacity 13 | 4 10 16 18 20 20 20 20 16 4 4 4 4 4 4 4 4 4 4 4 5 8 8 8 8 Most Carried 20 | 4 16 16 20 20 20 20 20 20 4 4 4 4 4 4 6 4 4 4 4 8 8 8 8 8 Average Carried 13 | 2 9 15 18 20 19 19 19 16 4 4 4 4 3 4 4 4 4 4 3 4 7 8 7 7 Final Capacity 20 | 4 16 16 20 20 20 20 20 4 4 4 4 4 4 4 4 4 4 4 4 8 8 8 8 8 Final Carried 20 | 4 16 16 20 20 20 20 20 4 4 4 4 4 4 4 4 4 4 4 4 8 8 8 8 4 Class Distribution -------------------- 39% | Hauler-Mutant 20% | Wizard-Scout 18% | Mutant 8% | Hacker-Mutant 8% | Wizard-Sprinter Dominant Class ---------------- Mutant | -10/Materials Mutant | -10/Mines Hauler-Mutant | -10/Exiles Hauler-Mutant | -9/Mines Hauler-Mutant | -8/Materials Hauler-Mutant | -8/Garrison Hauler-Mutant | -8/Materials Hacker-Mutant | -7/Factory Wizard-Sprinter | -7/Waste Wizard-Scout | -7/Factory Wizard-Sprinter | -7/Lower Caves Wizard-Sprinter | -7/Lower Caves Wizard-Sprinter | -7/Zion Wizard-Sprinter | -6/Proximity Caves Wizard-Scout | -6/Factory Wizard-Scout | -6/Lower Caves Wizard-Assassin | -6/Lower Caves Wizard-Scout | -6/Data Miner Wizard-Scout | -5/Proximity Caves Wizard-Scout | -5/Factory Wizard-Scout | -5/Upper Caves Wizard-Scout | -5/Upper Caves Wizard-Scout | -5/Warlord Hacker-Mutant | -4/Proximity Caves Resources | -11 -10 -10 -10 -9 -8 -8 -8 -7 -7 -7 -7 -7 -7 -6 -6 -6 -6 -6 -5 -5 -5 -5 -5 -4 ----------- Run | Scr Mat Min Exi Min Mat Gar Mat Fac Was Fac Low Low Zio Pro Fac Low Low Dat Pro Fac Upp Upp War Pro Matter Collected 3893 | 240 427 221 . 56 411 195 1093 161 . . 115 129 64 16 192 46 11 . 30 195 60 50 70 111 Remotely . | . . . . . . . . . . . . . . . . . . . . . . . . . Salvage Created 5070 | 175 734 233 . 42 407 269 1945 314 . . 62 74 . . 326 55 . . 57 235 . 36 . 106 Parts 340 | 10 54 14 . 5 40 21 129 24 . . . 2 . . 15 4 . . . 19 . 1 . 2 Haulers Intercepted 11 | . 2 . . . 2 . 4 . . . . . . . 2 . . . . 1 . . . . Recyclers Shooed 2 | 2 . . . . . . . . . . . . . . . . . . . . . . . . Parts Field Recycled . | . . . . . . . . . . . . . . . . . . . . . . . . . Retrieved Matter . | . . . . . . . . . . . . . . . . . . . . . . . . . Parts Self-Destructed 36 | . . . . . . . . . . . . 1 . . . 6 13 . 5 . . . 9 2 Prevented 16 | . . . . . . . . . . . . . . . . . 1 . . . . . 15 . Kills | -11 -10 -10 -10 -9 -8 -8 -8 -7 -7 -7 -7 -7 -7 -6 -6 -6 -6 -6 -5 -5 -5 -5 -5 -4 ------- Run | Scr Mat Min Exi Min Mat Gar Mat Fac Was Fac Low Low Zio Pro Fac Low Low Dat Pro Fac Upp Upp War Pro Combat Hostiles Destroyed 87 | . 16 4 . . 8 15 34 5 . . . . . . 1 . . . 1 1 . . . 2 Melee 3 | . . . . . . . . 1 . . . . . . . . . . 1 1 . . . . Guns 52 | . 14 4 . . 3 . 29 1 . . . . . . 1 . . . . . . . . . Cannons 2 | . . . . . . . . . . . . . . . . . . . . . . . . 2 AOE 29 | . 2 . . . 5 15 5 2 . . . . . . . . . . . . . . . . Classes Destroyed 17 | 2 6 . . . 1 1 3 1 . . . 2 . . . . . . . . . 1 . . Worker 3 | . . . . . . . 2 1 . . . . . . . . . . . . . . . . Builder 5 | . 2 . . 1 1 . 1 . . . . . . . . . . . . . . . . . Tunneler 11 | 5 . 3 . 1 . . 1 1 . . . . . . . . . . . . . . . . Hauler 11 | . 2 . . . 2 . 4 . . . . . . . 2 . . . . 1 . . . . Recycler 2 | 1 . 1 . . . . . . . . . . . . . . . . . . . . . . Minesweeper 2 | . . . . . . . . . . . . 1 . . . 1 . . . . . . . . Operator 5 | . 2 . . . . . 3 . . . . . . . . . . . . . . . . . Watcher 16 | . 3 . . . 3 . 3 2 . . . . . . 2 . . . . 3 . . . . Swarmer 21 | . 3 3 . . 5 7 3 . . . . . . . . . . . . . . . . . Grunt 42 | . 13 1 . . . 7 18 2 . . . . . . . . . . 1 . . . . . Duelist 3 | . . . . . . 1 2 . . . . . . . . . . . . . . . . . Protector 1 | . . . . . . . 1 . . . . . . . . . . . . . . . . . Sentry 11 | . . . . . 3 . 8 . . . . . . . . . . . . . . . . . Hunter 4 | . . . . . . . 2 . . . . . . . . . . . . . . . . 2 Programmer 5 | . . . . . . . . 3 . . . . . . 1 . . . . 1 . . . . Decomposer 3 | . . . . . . . . . . . 3 . . . . . . . . . . . . . Samaritan 2 | . . . . . . . . . . . . . . . . . . . . . . 1 . 1 Mutant 1 | . . . . . . . . . . . . 1 . . . . . . . . . . . . Best Kill Streak 6 | 6 5 3 . 1 3 6 6 2 . . . 1 . . 1 1 . . 1 1 . . . 2 Combat Bots Only 6 | . 3 3 . . 3 6 5 2 . . . . . . 1 . . . 1 1 . . . 2 Max Kills in Single Turn 4 | 1 2 1 . 1 3 3 4 1 . . 1 1 . . 1 1 . . 1 1 . 1 . 1 Gunslinging . | . . . . . . . . . . . . . . . . . . . . . . . . . Exploded 3 | . 1 . . . 3 3 3 1 . . . . . . . . . . . . . . . . Melee 1 | . . . . . . . . 1 . . . . . . . . . . 1 1 . . . . Uniques/NPCs Destroyed . | . . . . . . . . . . . . . . . . . . . . . . . . . Combat | -11 -10 -10 -10 -9 -8 -8 -8 -7 -7 -7 -7 -7 -7 -6 -6 -6 -6 -6 -5 -5 -5 -5 -5 -4 -------- Run | Scr Mat Min Exi Min Mat Gar Mat Fac Was Fac Low Low Zio Pro Fac Low Low Dat Pro Fac Upp Upp War Pro Damage Taken 6215 | . 574 201 . . 103 122 1999 320 . 18 . 21 . . 131 23 56 . 55 19 . 60 64 2449 Core 1624 | . 147 43 . . 6 . 210 90 . 18 . . . . 39 . 56 . . . . 17 . 998 Absorbed by Shields 97 | . . . . . 18 24 9 . . . . . . . . . . . . . . . . 46 Core Remaining (%) 71 | 100 . . . 24 . . 60 . . . . . . 84 . . . . 88 . . . . . Volleys Fired 362 | 17 82 21 . 5 30 16 140 16 . . . . . . 11 . . . . . . . 6 18 Largest 2 | 2 2 2 . 2 2 1 2 2 . . . . . . 1 . . . . . . . 1 1 Hottest 100 | 90 100 40 . 40 43 30 70 59 . . . . . . 33 . . . . . . . 98 98 Shots Fired 622 | 34 142 42 . 10 57 16 266 20 . . . . . . 11 . . . . . . . 6 18 Gun 562 | 34 135 42 . 10 54 . 262 14 . . . . . . 11 . . . . . . . . . Cannon 17 | . . . . . . . . . . . . . . . . . . . . . . . 4 13 Launcher 38 | . 2 . . . 3 16 4 6 . . . . . . . . . . . . . . 2 5 Special 5 | . 5 . . . . . . . . . . . . . . . . . . . . . . . Kinetic 431 | . 70 42 . 10 54 . 230 14 . . . . . . 11 . . . . . . . . . Thermal 111 | 34 60 . . . . . . . . . . . . . . . . . . . . . 4 13 Explosive 33 | . 2 . . . 3 16 4 1 . . . . . . . . . . . . . . 2 5 Electromagnetic 47 | . 10 . . . . . 32 5 . . . . . . . . . . . . . . . . Robot Hit Streak 28 | 4 16 10 . 4 5 3 28 9 . . . . . . 2 . . . . . . . . 3 Robot Miss Streak 6 | 1 4 2 . 1 6 2 3 2 . . . . . . 5 . . . . . . . . 2 Penetration Max 1 | . . . . . . . . . . . . . . . 1 . . . . . . . . . Secondary Targets 4 | . 2 1 . . . . 1 . . . . . . . . . . . . . . . . . Max Gunslinging Chain 1 | . 1 1 . . . . 1 . . . . . . . . . . . . . . . . . Shots Hit Robots 469 | 22 89 27 4 6 28 3 213 19 . 1 3 5 . . 25 2 . . 4 12 . 2 . 4 Core Hits 252 | 7 42 11 . 5 21 28 96 11 . . 2 2 . . 8 1 . . 2 6 . 1 2 7 Critical Hits 11 | . . . . . 2 . 2 1 . . 1 . . . 4 . . . . . . . . 1 Critical Kills 6 | . . . . . 1 . . 1 . . 1 . . . 2 . . . . . . . . 1 Critical Parts Destroyed 5 | . . . . . 1 . 2 . . . . . . . 2 . . . . . . . . . Melee Attacks 213 | . . . 4 . 7 1 2 26 . 5 9 10 3 5 39 11 8 . 4 48 . 6 15 10 Impact . | . . . . . . . . . . . . . . . . . . . . . . . . . Slashing 204 | . . . . . 7 1 2 24 . 4 9 10 3 5 39 11 7 . 4 47 . 6 15 10 Piercing . | . . . . . . . . . . . . . . . . . . . . . . . . . Sneak Attacks 28 | . . . 4 . 2 . 1 6 . 1 3 4 . . 2 1 . . . 1 . 2 . 1 Combat Hostiles . | . . . . . . . . . . . . . . . . . . . . . . . . . Follow-up Attacks . | . . . . . . . . . . . . . . . . . . . . . . . . . Damage Inflicted 13333 | 286 1490 342 . 54 857 947 3577 1169 . . 476 657 . . 1320 394 . . 208 647 . 288 23 598 Guns 5281 | 286 992 342 . 53 345 . 3061 158 . . . . . . 44 . . . . . . . . . Cannons 100 | . . . . . . . . . . . . . . . . . . . . . . . . 100 Explosions 2784 | . 498 . . . 195 947 391 414 . . . . . . . . . . . . . . 23 316 Melee 5167 | . . . . . 317 . 125 597 . . 476 657 . . 1276 394 . . 208 647 . 288 . 182 Ramming 1 | . . . . 1 . . . . . . . . . . . . . . . . . . . . Kinetic 4141 | . 515 342 . 53 345 . 2684 158 . . . . . . 44 . . . . . . . . . Thermal 1190 | 286 668 . . . . . . 136 . . . . . . . . . . . . . . . 100 Explosive 2113 | . 212 . . . 195 947 391 29 . . . . . . . . . . . . . . 23 316 Electromagnetic 721 | . 95 . . . . . 377 249 . . . . . . . . . . . . . . . . Impact . | . . . . . . . . . . . . . . . . . . . . . . . . . Slashing 5167 | . . . . . 317 . 125 597 . . 476 657 . . 1276 394 . . 208 647 . 288 . 182 Piercing . | . . . . . . . . . . . . . . . . . . . . . . . . . Highest Corruption 4 | . 1 1 1 1 4 4 4 . . 1 1 1 1 . 3 3 3 3 3 . . . . . Average Corruption 2 | . 1 1 1 1 4 4 4 . . 1 1 1 1 . 2 3 3 3 3 . . . . . Corruption Purged . | . . . . . . . . . . . . . . . . . . . . . . . . . Effects 132 | . 7 5 2 2 15 13 52 . . . 1 2 . . 15 5 10 1 2 . . . . . Message Errors 41 | . 1 2 1 1 7 3 14 . . . 1 2 . . 3 1 3 1 1 . . . . . Matter Fused 27 | . . . . . 1 2 16 . . . . . . . 3 2 2 . 1 . . . . . Heat Flow Errors 17 | . . . . . 3 . 10 . . . . . . . 2 . 2 . . . . . . . Energy Discharges 16 | . 1 1 1 . 2 3 2 . . . . . . . 3 1 2 . . . . . . . Parts Rejected 1 | . . . . . 1 . . . . . . . . . . . . . . . . . . . Data Loss (minor) 15 | . 1 2 . 1 . 3 5 . . . . . . . 2 1 . . . . . . . . Targeting Errors 13 | . 4 . . . 1 2 3 . . . . . . . 2 . 1 . . . . . . . Weapon Failures 2 | . . . . . . . 2 . . . . . . . . . . . . . . . . . Overload Shots . | . . . . . . . . . . . . . . . . . . . . . . . . . Overflow Damage 1492 | . 63 . . . 112 3 . 89 . . 164 173 . . 236 204 . . 33 92 . 141 25 157 Projectiles . | . . . . . . . . . . . . . . . . . . . . . . . . . Explosions 99 | . 63 . . . . 3 . . . . . . . . . . . . . . . . 25 8 Melee 1393 | . . . . . 112 . . 89 . . 164 173 . . 236 204 . . 33 92 . 141 . 149 Knockbacks . | . . . . . . . . . . . . . . . . . . . . . . . . . Impact . | . . . . . . . . . . . . . . . . . . . . . . . . . Kinetic . | . . . . . . . . . . . . . . . . . . . . . . . . . Secondary . | . . . . . . . . . . . . . . . . . . . . . . . . . Self-Inflicted Damage 121 | . . . . . . 56 . . . . . . . . . . . . . . . . 65 . Shots 4 | . . . . . . 3 . . . . . . . . . . . . . . . . 1 . Rammed 1 | . . . . 1 . . . . . . . . . . . . . . . . . . . . Targets Rammed 1 | . . . . 1 . . . . . . . . . . . . . . . . . . . . Kicked . | . . . . . . . . . . . . . . . . . . . . . . . . . Crushed . | . . . . . . . . . . . . . . . . . . . . . . . . . Highest Temperature 328 | 150 300 9 . . 242 . 237 28 . . . . 299 . 110 . 132 . . 23 25 12 328 162 Average Temperature 41 | 57 60 4 . . 99 . 46 16 . . . . 157 . 58 . 71 . . 10 9 5 33 49 Received Heat Transfer 1492 | . 294 87 . . 16 21 635 63 . . . . . . 6 12 9 . . . . . . 349 Siege Activations . | . . . . . . . . . . . . . . . . . . . . . . . . . Robots Corrupted 1 | . . . . . . . . 1 . . . . . . . . . . . . . . . . Combat Hostiles 1 | . . . . . . . . 1 . . . . . . . . . . . . . . . . Parts Fried 4 | . . . . . . . 1 3 . . . . . . . . . . . . . . . . Impact Corruptions . | . . . . . . . . . . . . . . . . . . . . . . . . . Robots Melted . | . . . . . . . . . . . . . . . . . . . . . . . . . Combat Hostiles . | . . . . . . . . . . . . . . . . . . . . . . . . . Parts Melted 5 | 2 3 . . . . . . . . . . . . . . . . . . . . . . . Heat Transferred 2122 | 768 1154 . . . . . . 50 . . . . . . . . . . . . . . . 150 Parts Sabotaged . | . . . . . . . . . . . . . . . . . . . . . . . . . Parts Stolen . | . . . . . . . . . . . . . . . . . . . . . . . . . Parts Stripped . | . . . . . . . . . . . . . . . . . . . . . . . . . Power Chain Reactions . | . . . . . . . . . . . . . . . . . . . . . . . . . Missiles Intercepted . | . . . . . . . . . . . . . . . . . . . . . . . . . Alert | -11 -10 -10 -10 -9 -8 -8 -8 -7 -7 -7 -7 -7 -7 -6 -6 -6 -6 -6 -5 -5 -5 -5 -5 -4 ------- Run | Scr Mat Min Exi Min Mat Gar Mat Fac Was Fac Low Low Zio Pro Fac Low Low Dat Pro Fac Upp Upp War Pro Peak Influence 868 | 30 286 120 . 5 168 749 868 688 285 290 . . . . 438 . . . . 482 . . . . Initial 373 | . 19 40 . . . 109 364 373 240 199 . . . . . . . . . 38 . . . . Average 213 | 11 191 44 . 1 48 554 463 300 269 221 . . . . 58 . . . . 111 . . . . Maximum Alert Level 3 | . 1 . . . . 3 3 2 1 1 . . . . 2 . . . . 2 . . . . Low Security (%) 56 | 100 56 100 . 100 100 4 1 20 . 24 . . . . 93 . . . . 84 . . . . Level 1 27 | . 43 . . . . 16 54 62 100 75 . . . . . . . . . 12 . . . . Level 2 11 | . . . . . . 44 29 17 . . . . . . 6 . . . . 3 . . . . Level 3 4 | . . . . . . 34 15 . . . . . . . . . . . . . . . . . Level 4 . | . . . . . . . . . . . . . . . . . . . . . . . . . Level 5 . | . . . . . . . . . . . . . . . . . . . . . . . . . High Security . | . . . . . . . . . . . . . . . . . . . . . . . . . Max Security . | . . . . . . . . . . . . . . . . . . . . . . . . . Squads Dispatched 34 | . 5 . . . 1 . 10 7 . 1 . . . . 5 . . . . 4 . . . 1 Investigation 14 | . 3 . . . 1 . 4 . . 1 . . . . 3 . . . . 2 . . . . Extermination 6 | . . . . . . . . 3 . . . . . . 2 . . . . 1 . . . . Reinforcement 10 | . 2 . . . . . 4 3 . . . . . . . . . . . 1 . . . . Assault 4 | . . . . . . . 2 1 . . . . . . . . . . . . . . . 1 Garrison . | . . . . . . . . . . . . . . . . . . . . . . . . . Intercept . | . . . . . . . . . . . . . . . . . . . . . . . . . Construction Impeded 1 | . . . . . . . 1 . . . . . . . . . . . . . . . . . Haulers Reinforced 1 | . . . . . . . . 1 . . . . . . . . . . . . . . . . Stealth | -11 -10 -10 -10 -9 -8 -8 -8 -7 -7 -7 -7 -7 -7 -6 -6 -6 -6 -6 -5 -5 -5 -5 -5 -4 --------- Run | Scr Mat Min Exi Min Mat Gar Mat Fac Was Fac Low Low Zio Pro Fac Low Low Dat Pro Fac Upp Upp War Pro Distress Signals 13 | . 4 . . . 4 . 1 2 . 1 . . . . . . . . . 1 . . . . Communications Jammed . | . . . . . . . . . . . . . . . . . . . . . . . . . Distress Signals . | . . . . . . . . . . . . . . . . . . . . . . . . . Times Spotted 216 | . 37 5 . . 21 14 49 23 6 3 . 1 . . 16 3 4 . 4 7 . 2 2 19 Peak Tracking Total 13 | . 4 3 . . 4 6 5 5 6 5 . 2 . . 3 3 4 . 3 3 . 2 5 13 Tactical Retreats 16 | . . 1 . . 2 . . 2 . 1 . 2 . . 1 1 2 . 1 . . . . 3 Traps | -11 -10 -10 -10 -9 -8 -8 -8 -7 -7 -7 -7 -7 -7 -6 -6 -6 -6 -6 -5 -5 -5 -5 -5 -4 ------- Run | Scr Mat Min Exi Min Mat Gar Mat Fac Was Fac Low Low Zio Pro Fac Low Low Dat Pro Fac Upp Upp War Pro Traps Triggered 18 | . 2 . . . . 3 2 3 . . . . . . 2 . . . . 6 . . . . Indirectly . | . . . . . . . . . . . . . . . . . . . . . . . . . Trap Hack Attempts 44 | . . 3 . . . . . 41 . . . . . . . . . . . . . . . . Triggered . | . . . . . . . . . . . . . . . . . . . . . . . . . Disarmed 1 | . . . . . . . . 1 . . . . . . . . . . . . . . . . Reprogrammed 4 | . . 1 . . . . . 3 . . . . . . . . . . . . . . . . Reused . | . . . . . . . . . . . . . . . . . . . . . . . . . Traps Extracted 3 | . . . . . . . . 3 . . . . . . . . . . . . . . . . Installed . | . . . . . . . . . . . . . . . . . . . . . . . . . Triggered 10 | . . . . . . . . . . . . . . 1 . . . . . . . . 9 . Machines | -11 -10 -10 -10 -9 -8 -8 -8 -7 -7 -7 -7 -7 -7 -6 -6 -6 -6 -6 -5 -5 -5 -5 -5 -4 ---------- Run | Scr Mat Min Exi Min Mat Gar Mat Fac Was Fac Low Low Zio Pro Fac Low Low Dat Pro Fac Upp Upp War Pro Machines Disabled 19 | . 6 . . . 1 2 3 5 . . . . . . 1 . . . . . . . 1 . Max in Single Turn 4 | . 4 . . . 1 2 1 4 . . . . . . 1 . . . . . . . 1 . Phase Generator 1 | . . . . . . 1 . . . . . . . . . . . . . . . . . . Machines Sabotaged . | . . . . . . . . . . . . . . . . . . . . . . . . . Garrisons Compromised . | . . . . . . . . . . . . . . . . . . . . . . . . . Overloaded Fab Kills . | . . . . . . . . . . . . . . . . . . . . . . . . . Fab Network Shutdowns 3 | . . . . . . . . 1 . . . . . . 1 . . . . 1 . . . . Hacking | -11 -10 -10 -10 -9 -8 -8 -8 -7 -7 -7 -7 -7 -7 -6 -6 -6 -6 -6 -5 -5 -5 -5 -5 -4 --------- Run | Scr Mat Min Exi Min Mat Gar Mat Fac Was Fac Low Low Zio Pro Fac Low Low Dat Pro Fac Upp Upp War Pro Machines Accessed 82 | . 8 2 2 . 9 . 8 11 . 8 . . . . 12 . . 4 . 12 2 . 4 . Terminals 44 | . 6 . . . 7 . 7 8 . 5 . . . . 5 . . . . 6 . . . . Fabricators 10 | . . . . . . . . 2 . 3 . . . . 3 . . . . 2 . . . . Repair Stations 1 | . . . . . . . . . . . . . . . 1 . . . . . . . . . Recycling Units 7 | . 2 . . . 1 . . . . . . . . . 2 . . . . 2 . . . . Scanalyzers 2 | . . . . . . . 1 . . . . . . . . . . . . 1 . . . . Garrison Access 4 | . . . . . 1 . . 1 . . . . . . 1 . . . . 1 . . . . Total Hacks 306 | . 29 2 2 . 37 . 25 42 . 32 . . . . 45 . . 28 . 52 5 . 7 . Successful 221 | . 16 2 2 . 16 . 12 26 . 23 . . . . 41 . . 28 . 43 5 . 7 . Failed 84 | . 13 . . . 20 . 13 16 . 9 . . . . 4 . . . . 9 . . . . Catastrophic 13 | . 2 . . . 4 . 2 3 . 1 . . . . 1 . . . . . . . . . Database Lockouts 1 | . . . . . 1 . . . . . . . . . . . . . . . . . . . Manual 181 | . 22 . 1 . 35 . 13 33 . 15 . . . . 27 . . . . 34 . . 1 . Terminals 167 | . 20 . . . 31 . 21 30 . 20 . . . . 19 . . . . 26 . . . . Fabricators 53 | . . . . . . . . 11 . 12 . . . . 16 . . . . 14 . . . . Repair Stations 2 | . . . . . . . . . . . . . . . 2 . . . . . . . . . Recycling Units 26 | . 9 . . . 5 . . . . . . . . . 6 . . . . 6 . . . . Scanalyzers 8 | . . . . . . . 4 . . . . . . . . . . . . 4 . . . . Garrison Access 6 | . . . . . 1 . . 1 . . . . . . 2 . . . . 2 . . . . Terminal Hacks 101 | . 4 2 2 . 4 . 4 12 . 10 . . . . 12 . . 28 . 11 5 . 7 . Record 21 | . . . 1 . . . . . . . . . . . . . . 11 . . 4 . 5 . Part Schematic 22 | . . . . . . . 1 6 . 1 . . . . 2 . . 8 . 4 . . . . Robot Schematic 6 | . . . . . . . . . . . . . . . . . . 6 . . . . . . Robot Analysis 8 | . 1 . . . 2 . 1 . . 3 . . . . . . . . . 1 . . . . Prototype ID Bank 6 | . 1 . . . . . . . . 1 . . . . 1 . . 3 . . . . . . Open Door 5 | . . 2 . . . . . . . . . . . . . . . . . . 1 . 2 . Branch Access Points 5 | . . . . . 1 . . 1 . 1 . . . . 1 . . . . 1 . . . . Terminal Index 6 | . 1 . . . 1 . 1 1 . 1 . . . . . . . . . 1 . . . . Fabricator Index 3 | . . . . . . . . 1 . . . . . . 1 . . . . 1 . . . . Garrison Index 2 | . . . . . . . . 1 . . . . . . . . . . . 1 . . . . Unreport Threat 4 | . . . . . . . . . . . . . . . 4 . . . . . . . . . Locate Traps 2 | . . . . . . . . 1 . 1 . . . . . . . . . . . . . . Recall Investigation 3 | . . . . . . . . . . . . . . . 2 . . . . 1 . . . . Recall Extermination 2 | . . . . . . . . . . . . . . . 1 . . . . 1 . . . . Recall Assault 1 | . . . . . . . . 1 . . . . . . . . . . . . . . . . Hauler Manifests 3 | . 1 . . . . . 1 . . 1 . . . . . . . . . . . . . . Zone Layout 1 | . . . . . . . . . . 1 . . . . . . . . . . . . . . EX-Prototype ID Bank 1 | . . . 1 . . . . . . . . . . . . . . . . . . . . . Fabricator Hacks 38 | . . . . . . . . 7 . 8 . . . . 12 . . . . 11 . . . . Load Schematic 16 | . . . . . . . . 3 . 3 . . . . 5 . . . . 5 . . . . Build 22 | . . . . . . . . 4 . 5 . . . . 7 . . . . 6 . . . . Repair Station Hacks 2 | . . . . . . . . . . . . . . . 2 . . . . . . . . . Scan Component 1 | . . . . . . . . . . . . . . . 1 . . . . . . . . . Repair 1 | . . . . . . . . . . . . . . . 1 . . . . . . . . . Recycling Unit Hacks 7 | . 2 . . . 1 . . . . . . . . . 2 . . . . 2 . . . . Retrieve Components 7 | . 2 . . . 1 . . . . . . . . . 2 . . . . 2 . . . . Scanalyzer 8 | . . . . . . . 4 . . . . . . . . . . . . 4 . . . . Insert Component 4 | . . . . . . . 2 . . . . . . . . . . . . 2 . . . . Analyze 4 | . . . . . . . 2 . . . . . . . . . . . . 2 . . . . Garrison Access Hacks 1 | . . . . . 1 . . . . . . . . . . . . . . . . . . . Unlock Access 1 | . . . . . 1 . . . . . . . . . . . . . . . . . . . Unauthorized Hacks 63 | . 10 . . . 9 . 4 7 . 5 . . . . 13 . . . . 15 . . . . Terminals 32 | . 6 . . . 7 . 4 3 . 2 . . . . 4 . . . . 6 . . . . Assimilate 7 | . . . . . 2 . . 2 . 1 . . . . 2 . . . . . . . . . Botnet 21 | . 5 . . . 4 . 4 1 . . . . . . 2 . . . . 5 . . . . Operators 4 | . 1 . . . 1 . . . . 1 . . . . . . . . . 1 . . . . Fabricators 13 | . . . . . . . . 3 . 3 . . . . 4 . . . . 3 . . . . Report 3 | . . . . . . . . . . 1 . . . . 1 . . . . 1 . . . . Siphon 8 | . . . . . . . . 2 . 1 . . . . 3 . . . . 2 . . . . Haulers 2 | . . . . . . . . 1 . 1 . . . . . . . . . . . . . . Repair Stations . | . . . . . . . . . . . . . . . . . . . . . . . . . Recycling Units 13 | . 4 . . . 2 . . . . . . . . . 3 . . . . 4 . . . . Reject 6 | . 2 . . . 1 . . . . . . . . . 1 . . . . 2 . . . . Mask 7 | . 2 . . . 1 . . . . . . . . . 2 . . . . 2 . . . . Scanalyzers . | . . . . . . . . . . . . . . . . . . . . . . . . . Garrison Access 5 | . . . . . . . . 1 . . . . . . 2 . . . . 2 . . . . Reprogram 2 | . . . . . . . . . . . . . . . 1 . . . . 1 . . . . Watchers 3 | . . . . . . . . 1 . . . . . . 1 . . . . 1 . . . . Data Cores Recovered . | . . . . . . . . . . . . . . . . . . . . . . . . . Used . | . . . . . . . . . . . . . . . . . . . . . . . . . Hacking Detections 55 | . 8 . . . 7 . 8 9 . 7 . . . . 9 . . . . 7 . . . . Full Trace Events 15 | . 4 . . . 3 . 4 . . 1 . . . . 2 . . . . 1 . . . . Feedback Events 4 | . 1 . . . . . . . . 1 . . . . 2 . . . . . . . . . Corruption 2 | . 1 . . . . . . . . 1 . . . . . . . . . . . . . . Hackware Fried 2 | . . . . . . . . . . . . . . . 2 . . . . . . . . . Feedback Blocked . | . . . . . . . . . . . . . . . . . . . . . . . . . Robot Schematics Acquired 6 | . . . . . . . . . . . . . . . . . . 6 . . . . . . Robots Built . | . . . . . . . . . . . . . . . . . . . . . . . . . Matter . | . . . . . . . . . . . . . . . . . . . . . . . . . Time . | . . . . . . . . . . . . . . . . . . . . . . . . . Total Robot Build Rating . | . . . . . . . . . . . . . . . . . . . . . . . . . Part Schematics Acquired 26 | . . . . . . . 3 6 . 1 . . . . 2 . . 8 . 6 . . . . Parts Built 18 | . . . . . . . . 3 . 4 . . . . 6 . . . . 5 . . . . Matter 3073 | . . . . . . . . 580 . 642 . . . . 798 . . . . 1053 . . . . Time 1786 | . . . . . . . . 327 . 217 . . . . 497 . . . . 745 . . . . Total Part Build Rating 87 | . . . . . . . . 11 . 19 . . . . 31 . . . . 26 . . . . Parts Repaired 1 | . . . . . . . . . . . . . . . 1 . . . . . . . . . Time 30 | . . . . . . . . . . . . . . . 30 . . . . . . . . . Parts Recycled . | . . . . . . . . . . . . . . . . . . . . . . . . . Recycled Matter . | . . . . . . . . . . . . . . . . . . . . . . . . . Retrieved Matter . | . . . . . . . . . . . . . . . . . . . . . . . . . Retrieved Components 15 | . 1 . . . 9 . . . . . . . . . 2 . . . . 3 . . . . Parts Scanalyzed 4 | . . . . . . . 2 . . . . . . . . . . . . 2 . . . . Part Schematics Acquired 4 | . . . . . . . 2 . . . . . . . . . . . . 2 . . . . Parts Damaged 1 | . . . . . . . 1 . . . . . . . . . . . . . . . . . Bothacking | -11 -10 -10 -10 -9 -8 -8 -8 -7 -7 -7 -7 -7 -7 -6 -6 -6 -6 -6 -5 -5 -5 -5 -5 -4 ------------ Run | Scr Mat Min Exi Min Mat Gar Mat Fac Was Fac Low Low Zio Pro Fac Low Low Dat Pro Fac Upp Upp War Pro Used RIF Installer . | . . . . . . . . . . . . . . . . . . . . . . . . . Robots Hacked 6 | . . . 4 . . . . 2 . . . . . . . . . . . . . . . . Non-combat 5 | . . . 3 . . . . 2 . . . . . . . . . . . . . . . . Combat 1 | . . . 1 . . . . . . . . . . . . . . . . . . . . . Robot Hacks Applied 6 | . . . 4 . . . . 2 . . . . . . . . . . . . . . . . parse_system 4 | . . . 4 . . . . . . . . . . . . . . . . . . . . . no_distress 1 | . . . . . . . . 1 . . . . . . . . . . . . . . . . find_chute 1 | . . . . . . . . 1 . . . . . . . . . . . . . . . . Relay Couplers Released . | . . . . . . . . . . . . . . . . . . . . . . . . . Robots Rewired . | . . . . . . . . . . . . . . . . . . . . . . . . . Allies Hacked . | . . . . . . . . . . . . . . . . . . . . . . . . . Hacks Repelled . | . . . . . . . . . . . . . . . . . . . . . . . . . Allies | -11 -10 -10 -10 -9 -8 -8 -8 -7 -7 -7 -7 -7 -7 -6 -6 -6 -6 -6 -5 -5 -5 -5 -5 -4 -------- Run | Scr Mat Min Exi Min Mat Gar Mat Fac Was Fac Low Low Zio Pro Fac Low Low Dat Pro Fac Upp Upp War Pro Total Allies 12 | . . . . 3 1 . . 1 . 1 . . . . 2 . . . 1 3 . . . . Largest Group 3 | . . . . 3 3 1 . 1 . 1 . . . . 2 1 . . 1 3 . . . . Highest-Rated Group 94 | . . . . 40 40 23 . 10 . 26 . . . . 36 10 . . 94 87 . . . . Highest-Rated Ally 94 | . . . . 16 26 23 . 10 . 26 . . . . 26 10 . . 94 29 . . . . Total Orders 5 | . . . . . 1 1 . . . . . . . . . 3 . . . . . . . . STAY 3 | . . . . . . 1 . . . . . . . . . 2 . . . . . . . . ROAM 1 | . . . . . 1 . . . . . . . . . . . . . . . . . . . FOLLOW 1 | . . . . . . . . . . . . . . . . 1 . . . . . . . . Ally Attacks 30 | . . . . . 15 . . . . . . . . . . . . . 12 3 . . . . Total Damage 644 | . . . . . 194 . . . . . . . . . . . . . 432 18 . . . . Kills 4 | . . . . . 2 . . . . . . . . . . . . . 2 . . . . . Allies Corrupted . | . . . . . . . . . . . . . . . . . . . . . . . . . Allies Melted . | . . . . . . . . . . . . . . . . . . . . . . . . . Intel | -11 -10 -10 -10 -9 -8 -8 -8 -7 -7 -7 -7 -7 -7 -6 -6 -6 -6 -6 -5 -5 -5 -5 -5 -4 ------- Run | Scr Mat Min Exi Min Mat Gar Mat Fac Was Fac Low Low Zio Pro Fac Low Low Dat Pro Fac Upp Upp War Pro Robot Analysis Total 8 | . 1 . . . 2 . 1 . . 3 . . . . . . . . . 1 . . . . Derelict Logs Recovered 19 | . . 1 . 2 . . . . . . 1 2 . 2 . 2 1 . 3 . 2 1 . 2 Drone Launches . | . . . . . . . . . . . . . . . . . . . . . . . . . Drone Recoveries . | . . . . . . . . . . . . . . . . . . . . . . . . . Exploration | -11 -10 -10 -10 -9 -8 -8 -8 -7 -7 -7 -7 -7 -7 -6 -6 -6 -6 -6 -5 -5 -5 -5 -5 -4 ------------- Run | Scr Mat Min Exi Min Mat Gar Mat Fac Was Fac Low Low Zio Pro Fac Low Low Dat Pro Fac Upp Upp War Pro Turns Passed 17068 | 89 1670 1117 677 959 1948 820 2420 1840 40 262 193 173 269 252 1257 378 476 27 180 889 148 92 366 526 Spaces Moved 16066 | 50 814 625 386 524 873 387 969 1185 106 513 515 459 777 305 1697 667 341 80 418 1845 578 315 1118 519 Core 114 | 50 6 . . . . . . . . . . . . . . . 51 . . . . . . 7 Treads 5156 | . 808 625 386 524 873 387 969 584 . . . . . . . . . . . . . . . . Legs . | . . . . . . . . . . . . . . . . . . . . . . . . . Wheels . | . . . . . . . . . . . . . . . . . . . . . . . . . Hover . | . . . . . . . . . . . . . . . . . . . . . . . . . Flight 10796 | . . . . . . . . 601 106 513 515 459 777 305 1697 667 290 80 418 1845 578 315 1118 512 Fastest Speed 21 | 50 50 160 160 180 180 180 180 32 32 32 32 32 32 32 32 34 34 34 34 23 23 23 21 21 Average Speed 79 | 50 163 165 171 180 180 180 183 116 32 32 32 32 32 32 34 34 58 34 34 29 23 23 22 68 Slowest Speed 1100 | 50 180 180 180 180 200 180 240 240 32 32 32 32 32 32 102 34 200 34 34 109 108 23 23 1100 Overloaded Moves . | . . . . . . . . . . . . . . . . . . . . . . . . . Propulsion Burnouts . | . . . . . . . . . . . . . . . . . . . . . . . . . Robots Hopped 12 | . . . . . . . . . . 4 . . . . 4 1 . . . 3 . . . . Cave-ins Triggered . | . . . . . . . . . . . . . . . . . . . . . . . . . Exploration Rate (%) 62 | 3 94 96 70 94 46 69 81 31 77 14 60 59 84 46 40 83 61 75 62 31 83 61 93 53 Regions Visited 24 Branch Regions 15 Pre-discovered Areas 8 | . . 1 1 . . . . . . . . 1 . 2 . . 1 1 . . 1 . . . Known Exits Taken 17 | . 1 . . . 1 . 1 . . 1 1 1 1 1 1 1 1 1 1 1 1 1 1 . Unknown Exits Taken 4 | 1 . 1 1 1 . . . . . . . . . . . . . . . . . . . . Scrap Searched 27 | . . 1 . 2 . . . . . . 3 1 5 2 . 1 . . 3 . 5 3 . 1 Spaces Dug 166 | . 2 . . . 3 . 1 17 . 4 6 5 . 5 14 9 7 . . 33 . 4 28 28 Terrain Destroyed 364 | . 15 . . . 21 97 19 44 . 4 6 5 . 5 14 9 7 . . 33 . 4 28 53 Melee 128 | . . . . . 3 . 1 17 . 4 6 5 . 5 14 9 7 . . 33 . 4 11 9 Projectile 19 | . 5 . . . . . . . . . . . . . . . . . . . . . 4 10 AOE 217 | . 10 . . . 18 97 18 27 . . . . . . . . . . . . . . 13 34 Terrain Rammed . | . . . . . . . . . . . . . . . . . . . . . . . . . Walls Destroyed . | . . . . . . . . . . . . . . . . . . . . . . . . . Machines Disabled . | . . . . . . . . . . . . . . . . . . . . . . . . . Actions | -11 -10 -10 -10 -9 -8 -8 -8 -7 -7 -7 -7 -7 -7 -6 -6 -6 -6 -6 -5 -5 -5 -5 -5 -4 --------- Run | Scr Mat Min Exi Min Mat Gar Mat Fac Was Fac Low Low Zio Pro Fac Low Low Dat Pro Fac Upp Upp War Pro Total 19461 | 77 1005 671 399 530 1186 495 1345 1607 111 601 533 474 793 453 2310 805 607 79 451 2136 590 327 1214 662 Wait 2332 | 3 54 8 . 1 215 84 187 266 6 81 10 2 1 144 523 128 256 . 26 179 . 2 50 106 Move 16019 | 49 813 624 385 523 873 385 968 1185 105 504 514 458 776 304 1688 664 340 79 417 1838 577 314 1117 519 Hop 12 | . . . . . . . . . . 4 . . . . 4 1 . . . 3 . . . . Pick Up 92 | 4 20 5 3 . 12 1 9 11 . 1 . . 1 . 7 . . . 2 8 2 1 5 . Fast Attach 72 | 4 5 . . . 9 . 11 8 . 1 . 1 5 . 4 1 2 . . 12 2 . 6 1 Attach 31 | . 3 2 . . 5 . 2 7 . . . . . . 5 . . . 1 1 . . 1 4 Detach 20 | . 2 . . . 5 . . 3 . 1 . . 3 . 1 . . . . 3 . . 1 1 Swap 89 | . 14 3 4 . 12 1 13 14 . 3 . 1 1 . 4 . . . . 7 5 3 2 2 Drop 122 | . 12 5 3 . 18 1 13 30 . 1 . 2 3 . 6 . 1 . 1 9 4 1 11 1 Fire 362 | 17 82 21 . 5 30 16 140 16 . . . . . . 11 . . . . . . . 6 18 Melee 213 | . . . 4 . 7 1 2 26 . 5 9 10 3 5 39 11 8 . 4 48 . 6 15 10 Ram . | . . . . . . . . . . . . . . . . . . . . . . . . . Kick . | . . . . . . . . . . . . . . . . . . . . . . . . . Crush 1 | . . . . 1 . . . . . . . . . . . . . . . . . . . . Escape Stasis 52 | . . . . . . 6 . . . . . . . . 18 . . . . 28 . . . . Rewire . | . . . . . . . . . . . . . . . . . . . . . . . . . Trap 44 | . . 3 . . . . . 41 . . . . . . . . . . . . . . . . Miscellaneous . | . . . . . . . . . . . . . . . . . . . . . . . . . Route ------- -11/Scrapyard -10/Materials (discovered 5 exits: *Mat x3 / *Min x2) -10/Mines (discovered 3 exits: *Mat x2 / *Exi) -10/Exiles -9/Mines (discovered 2 exits: *Mat x2) -8/Materials (discovered 3 exits: *Fac x2 / Gar) -8/Garrison (discovered 2 exits: *Mat x2) -8/Materials (discovered 3 exits: *Fac x3) -7/Factory (discovered 7 exits: *Fac x3 / Sto x2 / Low x2) -7/Waste -7/Factory (discovered 3 exits: Sto / *Low x2) -7/Lower Caves -7/Lower Caves (discovered 2 exits: *Fac / *Zio) -7/Zion -6/Proximity Caves -6/Factory (discovered 3 exits: *Fac / *Low x2) -6/Lower Caves -6/Lower Caves (discovered 2 exits: *Fac / *Dat) -6/Data Miner -5/Proximity Caves -5/Factory (discovered 5 exits: Fac / *Upp x2 / *Ext x2) -5/Upper Caves -5/Upper Caves (discovered 2 exits: *Fac / *War) -5/Warlord -4/Proximity Caves History --------- Turn | Location | Event 7 | -11/Scrapyard | Discovered new exit (range 16) 90 | -11/Scrapyard | Entered Materials 343 | -10/Materials | Build established: Mutant 435 | -10/Materials | Discovered new exit (range 16) 482 | -10/Materials | Identified exit to Materials 603 | -10/Materials | Discovered new exit (range 16) 683 | -10/Materials | Discovered exit to Materials (range 3) 754 | -10/Materials | Discovered new exit (range 7) 842 | -10/Materials | Discovered exit to Materials (range 3) 1015 | -10/Materials | Core integrity fell below 50% 1063 | -10/Materials | Identified exit to Mines 1760 | -10/Materials | Entered Mines 1787 | -10/Mines | Met a Derelict bent on vengeance 1951 | -10/Mines | Deemed a non-threat by the Exiles lab entrance 1951 | -10/Mines | Discovered new exit (range 5) 1992 | -10/Mines | Met a Derelict who couldn't figure out how to use a Trap Extractor 2268 | -10/Mines | Discovered exit to Materials (range 15) 2339 | -10/Mines | Discovered exit to Materials (range 11) 2501 | -10/Mines | Found the Drone Emporium 2512 | -10/Mines | Found Prototype Device 2636 | -10/Mines | Learned location of Zion (-7) 2877 | -10/Mines | Entered Exiles 2916 | -10/Exiles | Met 8R-AWN 2948 | -10/Exiles | Met EX-HEX 3017 | -10/Exiles | Met EX-DEC 3285 | -10/Exiles | Met EX-BIN 3316 | -10/Exiles | Aligned with FarCom system 3317 | -10/Exiles | Given EX-Vault access code 3359 | -10/Exiles | Opened EX-Vault 3372 | -10/Exiles | Found Longsword +1 3416 | -10/Exiles | Warned to stay clear of 0b10 Research branches 3449 | -10/Exiles | Build established: Hauler-Mutant 3533 | -10/Exiles | Discovered new exit (range 14) 3554 | -10/Exiles | Left Exiles lab with Longsword +1 3554 | -10/Exiles | Entered Mines 3608 | -9/Mines | Learned 8 Materials zone layouts 3657 | -9/Mines | Discovered new exit (range 5) 3757 | -9/Mines | Discovered new exit (range 7) 3865 | -9/Mines | Found a hidden stash of uninstalled traps 3917 | -9/Mines | Learned Materials stockpile data 4221 | -9/Mines | Assisted by bots powering up and referring to "LRC-V3" 4513 | -9/Mines | Entered Materials 4513 | -8/Materials | Accompanied by 3 allies 4513 | -8/Materials | Evolved 4 slots: Utility x4 4514 | -8/Materials | Identified exit to Factory 5231 | -8/Materials | Central database locked down 6457 | -8/Materials | Identified exit to Garrison 6461 | -8/Materials | Entered Garrison 6461 | -8/Garrison | Accompanied by 1 ally 6551 | -8/Garrison | Phase Generator disabled 6633 | -8/Garrison | Triggered checkpoint 6728 | -8/Garrison | Triggered checkpoint 6747 | -8/Garrison | Triggered checkpoint 7121 | -8/Garrison | Discovered new exit (range 8) 7133 | -8/Garrison | Identified exit to Materials 7135 | -8/Garrison | Attempted to access garrison exit controls, blocked by remote lockdown 7258 | -8/Garrison | Discovered exit to Materials (range 10) 7281 | -8/Garrison | Entered Materials 7945 | -8/Materials | Discovered exit to Factory (range 9) 8232 | -8/Materials | Discovered exit to Factory (range 7) 8971 | -8/Materials | Discovered exit to Factory (range 11) 9281 | -8/Materials | First assault squad dispatched 9701 | -8/Materials | Entered Factory 9701 | -7/Factory | Evolved 2 slots: Utility x2 10244 | -7/Factory | Build established: Hacker-Mutant 10379 | -7/Factory | Discovered new exit (range 6) 10421 | -7/Factory | Identified exit to Factory 10926 | -7/Factory | Discovered exit to Factory (range 7) 11021 | -7/Factory | Fabricated Imp. VTOL Module (x1) 11138 | -7/Factory | Fabricated Imp. VTOL Module (x1) 11196 | -7/Factory | Identified Decoy Drone Bay 11297 | -7/Factory | Local fabrication network quarantined 11301 | -7/Factory | First assault squad dispatched 11303 | -7/Factory | Fabricated Imp. Hacking Suite (x1) 11345 | -7/Factory | Identified exit to Storage 11345 | -7/Factory | Identified exit to Lower Caves 11364 | -7/Factory | Discovered exit to Factory (range 7) 11541 | -7/Factory | Manually triggered Chute Trap 11541 | -7/Factory | Sucked down chute 11541 | -7/Factory | Entered Waste 11544 | -7/Waste | Spotted C-40 Crusher 11547 | -7/Waste | Spotted C-40 Crusher 11548 | -7/Waste | Spotted C-40 Crusher 11551 | -7/Waste | Spotted C-40 Crusher 11552 | -7/Waste | Spotted C-40 Crusher 11569 | -7/Waste | Spotted C-40 Crusher 11578 | -7/Waste | Discovered new exit (range 10) 11581 | -7/Waste | Identified exit to Factory 11581 | -7/Waste | Entered Factory 11617 | -7/Factory | Build established: Wizard-Sprinter 11620 | -7/Factory | Fabricated Lrn. Sensor Array (x1) 11642 | -7/Factory | Fabricated Imp. Hacking Suite (x1) 11691 | -7/Factory | Fabricated Imp. Hacking Suite? 11751 | -7/Factory | Fabricated Imp. Hacking Suite (x1) 11843 | -7/Factory | Entered Lower Caves 11877 | -7/Lower Caves | Identified exit to Lower Caves 12036 | -7/Lower Caves | Entered another Lower Caves area 12048 | -7/Lower Caves | Encountered a Warlord checkpoint 12051 | -7/Lower Caves | Learned Factory interactive machine intel 12081 | -7/Lower Caves | Discovered exit to Factory (range 5) 12204 | -7/Lower Caves | Discovered new exit (range 15) 12208 | -7/Lower Caves | Identified exit to Zion 12209 | -7/Lower Caves | Entered Zion 12245 | -7/Zion | Discovered new exit (range 16) 12250 | -7/Zion | Identified exit to Proximity Caves 12260 | -7/Zion | System corruption cleaned by Quarantine Array 12356 | -7/Zion | Found Prototype Processor 12356 | -7/Zion | Identified Spectral Analyzer 12361 | -7/Zion | Found Prototype Processor 12361 | -7/Zion | Identified Exp. Core Analyzer 12363 | -7/Zion | Found Prototype Processor 12363 | -7/Zion | Identified Exp. Terrain Scan Processor 12369 | -7/Zion | Found Spectral Analyzer 12478 | -7/Zion | Entered Proximity Caves 12711 | -6/Proximity Caves | Discovered exit to Factory (range 9) 12730 | -6/Proximity Caves | Entered Factory 12730 | -6/Factory | Evolved 2 slots: Utility x2 12731 | -6/Factory | Loaded intel: 44 interactive machine locations 12811 | -6/Factory | Imp. Hacking Suite fried by hacking feedback 12949 | -6/Factory | Fabricated Adv. Hacking Suite (x1) 12951 | -6/Factory | System Shield fried by hacking feedback 13057 | -6/Factory | Fabricated Adv. Hacking Suite? 13279 | -6/Factory | Identified exit to Lower Caves 13380 | -6/Factory | Repaired Imp. VTOL Module 13415 | -6/Factory | Fabricated Imp. System Shield? 13524 | -6/Factory | Fabricated Adv. Hacking Suite (x1) 13555 | -6/Factory | Fabricated Powered Armor (x2) 13692 | -6/Factory | Build established: Wizard-Scout 13798 | -6/Factory | Local fabrication network quarantined 13960 | -6/Factory | Discovered new exit (range 7) 13987 | -6/Factory | Entered Lower Caves 13987 | -6/Lower Caves | Accompanied by 1 ally 14271 | -6/Lower Caves | Learned location of 1 exit from Factory 14322 | -6/Lower Caves | Learned Factory garrison access intel 14339 | -6/Lower Caves | Encountered a Warlord checkpoint 14349 | -6/Lower Caves | Discovered new exit (range 8) 14351 | -6/Lower Caves | Identified exit to Lower Caves 14365 | -6/Lower Caves | Entered another Lower Caves area 14654 | -6/Lower Caves | Build established: Wizard-Assassin 14679 | -6/Lower Caves | Discovered new exit (range 6) 14687 | -6/Lower Caves | Identified exit to Factory 14737 | -6/Lower Caves | Attacked by a faux Warlord 14808 | -6/Lower Caves | Discovered new exit (range 10) 14816 | -6/Lower Caves | Found Alien Artifact 14816 | -6/Lower Caves | Identified Core Expander 14816 | -6/Lower Caves | Installed Core Expander, added new Propulsion slot 14823 | -6/Lower Caves | Identified exit to Data Miner 14841 | -6/Lower Caves | Entered Data Miner 14841 | -6/Data Miner | Discovered new exit (range 6) 14845 | -6/Data Miner | Met Data Miner 14855 | -6/Data Miner | Learned location of Section 7 (-2) 14855 | -6/Data Miner | Acquired the access code to Warlord's prototype stash 14860 | -6/Data Miner | Received God Mode back door access code from Data Miner 14868 | -6/Data Miner | Identified exit to Proximity Caves 14868 | -6/Data Miner | Entered Proximity Caves 14892 | -5/Proximity Caves | Escorted by Enhanced Grunt 14911 | -5/Proximity Caves | Spotted B-75 Beast 14915 | -5/Proximity Caves | Learned location of 1 exit from Upper Caves 15044 | -5/Proximity Caves | Discovered exit to Factory (range 11) 15045 | -5/Proximity Caves | Learned Factory garrison access intel 15046 | -5/Proximity Caves | Build established: Wizard-Scout 15048 | -5/Proximity Caves | Entered Factory 15048 | -5/Factory | Evolved 2 slots: Power x1, Propulsion x1 15049 | -5/Factory | Identified exit to Factory 15050 | -5/Factory | Loaded intel: 3 garrison access locations 15375 | -5/Factory | Identified exit to Upper Caves 15375 | -5/Factory | Identified exit to Extension 15437 | -5/Factory | Fabricated Med. Storage Unit? 15510 | -5/Factory | Incoming investigation squad redirected 15579 | -5/Factory | Fabricated Exp. Sensor Array (x1) 15621 | -5/Factory | Fabricated Exp. Cesium-ion Thruster? 15786 | -5/Factory | Fabricated Exp. Transmission Jammer? 15810 | -5/Factory | Fabricated Exp. Cesium-ion Thruster? 15839 | -5/Factory | Local fabrication network quarantined 15937 | -5/Factory | Entered Upper Caves 15938 | -5/Upper Caves | Identified exit to Upper Caves 16005 | -5/Upper Caves | Learned Factory stockpile data 16013 | -5/Upper Caves | Learned Extension stockpile data 16085 | -5/Upper Caves | Entered another Upper Caves area 16086 | -5/Upper Caves | Identified exit to Warlord 16093 | -5/Upper Caves | Discovered exit to Factory (range 7) 16128 | -5/Upper Caves | Learned location of 1 exit from Factory 16177 | -5/Upper Caves | Entered Warlord 16192 | -5/Warlord | Discovered new exit (range 9) 16193 | -5/Warlord | Identified exit to Proximity Caves 16290 | -5/Warlord | Warlord's base attacked by MAIN.C 16353 | -5/Warlord | Met Warlord 16362 | -5/Warlord | Opened Warlord's prototype stash 16372 | -5/Warlord | Found Prototype Hackware 16372 | -5/Warlord | Identified System Mapper 16374 | -5/Warlord | Found Prototype Device 16374 | -5/Warlord | Identified Thermal Barrier 16380 | -5/Warlord | Found Prototype Reactor 16436 | -5/Warlord | Opened side exit 16543 | -5/Warlord | Entered Proximity Caves 16549 | -4/Proximity Caves | Spotted B-86 Titan 16791 | -4/Proximity Caves | Learned Research security intel 16863 | -4/Proximity Caves | Lost 6 parts (2n2u2w) 17036 | -4/Proximity Caves | Attracted the attention of an 0b10 outpost 17051 | -4/Proximity Caves | Core integrity fell below 50% 17057 | -4/Proximity Caves | Core integrity fell below 20% 17059 | -4/Proximity Caves | Identified Vortex Chain Reactor 17069 | -4/Proximity Caves | Destroyed by G-67 Veteran with Plasma Rifle Last Messages --------------- 17046_ Adv. Hacking Suite destroyed. 17046_ S-27 Virus destroyed. 17047_ Penetrated by Slug. 17047_ Adv. Hacking Suite destroyed. 17050_ Slug penetrates L-61 Swordsman. 17053_ VTOL Module fries itself beyond repair. 17054_ Adv. System Shield destroyed. 17056_ Unknown Power Core fries itself beyond repair. 17059_ Identified Vortex Chain Reactor. 17061_ C-30 ARC bursts open, deploying its payload. 17061_ G-73 Enforcer unfolds itself. 17061_ L-61 Swordsman unfolds itself. 17061_ G-67 Veteran unfolds itself. 17061_ B-60 Warrior unfolds itself. 17061_ I-47 Archangel unfolds itself. 17064_ S-27 Virus destroyed. 17066_ Imp. Force Field destroyed. 17066_ Powered Armor destroyed. 17068_ Slug penetrates Wall. [Achievement: Collector] Map ----- +----------------------------------------------------+ | ?????????????????????????????????????????????????? | | ?????????????????????????????????????????????????? | | ?????????????????????????????????????????????????? | | ?????????????????????????????????????????????????? | | ?????????????????????????????????????????????????? | | ?????????????????????????????????????????????????? | | ?????????????????????????????????????????????????? | | ?????????????????????????????????????????????????? | | ???????????????#####?????????????????????????????? | | ???????????????# ##????????????????????????????? | | ??????????????## #????????????????????????????? | | ????????????### ?????????????????????????????? | | ???????????## #?????????????????????????????? | | ??????????## #?????????????????????????????? | | ??????????# #?????????????????????????????? | | ??????????# #?????????????????????????????? | | ??????????# ##????????????????????????????? | | ???????????# ###??????????????????????????? | | ???????????## ##?????????????????????????? | | ???????#####" #?????????????????????????? | | ??????## #"## ### #?????????????????????????? | | ??????# "#####" *"#?????????????????????????? | | ??????# ""##??## ####????????????????????????? | | ####### ###;####% ## ##???????????????????????? | | ## ## Y [ l#### # #??????????????? | | g % @g %i #???????????????? | | # ####### g = bl g ##???????????????? | | # #????# g g ######## #????????????????? | | # #????# g #?????????????????????????? | | # #? #??????????????????????? | | # #Y #?????????????????????? | | # #" # ## ## #?????????????????????? | | # #"""?# ######## #?????????????????????? | | ####### ###??? #?????????????????????? | | #??? #?????????????????????? | | ## #???# #?????????????????????? | | ?## ## # #???## ##?????????????????????? | | ??# ##### ## ##?????# ##??????????????????????? | | ? ???# #?##???????? #???????????????????????? | | ???# ##??????????##???????????????????????? | | ## ?## ! ##??????????????????????????????????? | | ?## ### #??????????????????????????????????? | | ??## ## # # ##?????????????????????????????????? | | ###### # % #?????????????????????????????????? | | ## #?????????????????????????????????? | | ###???????????????????????????????? | | ### #???????????????????????????????? | | ???# # ##???????????????????????????????? | | ???# ## #????????????????????????????????? | | ?### # #????????????????????????????????? | +----------------------------------------------------+ Best States ------------- Heat Dissipation 40 Energy Generation 55 Energy Capacity 700 Matter Stores 300 Matter Capacity 800 Sight Range 24 Robot Scan Range 30 Terrain Scan Density 10 Additional Mass Support 9 Armor Coverage 450 Power Shielding 33 Evasion (%) 65 Recoil Reduction 2 Particle Charging 15 Offensive Hacking 76 Defensive Hacking 26 Item Schematics ----------------- Cesium-ion Thruster | -8/Materials | Scanalyzed Imp. VTOL Module | -8/Materials | Scanalyzed Hacking Suite | -8/Materials | Hacked Imp. Hacking Suite | -7/Factory | Hacked Lrn. Sensor Array | -7/Factory | Hacked Med. Storage Unit | -7/Factory | Hacked Imp. Plasma Cutter | -7/Factory | Hacked Lrn. Terrain Scanner | -7/Factory | Hacked Adv. Terrain Scan Processor | -7/Factory | Hacked Powered Armor | -7/Factory | Hacked Adv. Hacking Suite | -6/Factory | Hacked Imp. System Shield | -6/Factory | Hacked Combat Drone Bay | -6/Data Miner | Free Lgt. Regenerative Plating | -6/Data Miner | Free Exp. Flexi-carbon Leg | -6/Data Miner | Free Cmb. Gravmag System | -6/Data Miner | Free Exp. Cesium-ion Thruster | -6/Data Miner | Free Exp. Sensor Array | -6/Data Miner | Free Exp. Terrain Scan Processor | -6/Data Miner | Free Exp. Transmission Jammer | -6/Data Miner | Free Adv. System Shield | -5/Factory | Hacked Exp. Signal Interpreter | -5/Factory | Hacked Force Lance | -5/Factory | Hacked Fusion Compressor | -5/Factory | Scanalyzed Nuclear Pulse Thruster | -5/Factory | Scanalyzed Gui. EMP Blaster | -5/Factory | Hacked Robot Schematics ------------------ S-27 Virus | -6/Data Miner | Free G-50 Soldier | -6/Data Miner | Free G-67 Veteran | -6/Data Miner | Free P-70 Sage | -6/Data Miner | Free I-36 Angel | -6/Data Miner | Free I-47 Archangel | -6/Data Miner | Free Fabricated ------------ Imp. VTOL Module | x1 | -7/Factory Imp. VTOL Module | x1 | -7/Factory Imp. Hacking Suite | x1 | -7/Factory Lrn. Sensor Array | x1 | -7/Factory Imp. Hacking Suite | x1 | -7/Factory Imp. Hacking Suite | x1 | -7/Factory Imp. Hacking Suite | x1 | -7/Factory Adv. Hacking Suite | x1 | -6/Factory Adv. Hacking Suite | x1 | -6/Factory Imp. System Shield | x1 | -6/Factory Adv. Hacking Suite | x1 | -6/Factory Powered Armor | x2 | -6/Factory Med. Storage Unit | x1 | -5/Factory Exp. Sensor Array | x1 | -5/Factory Exp. Cesium-ion Thruster | x1 | -5/Factory Exp. Transmission Jammer | x1 | -5/Factory Exp. Cesium-ion Thruster | x1 | -5/Factory Alien Tech Used ----------------- Core Expander Achievements -------------- Collector Challenges ------------ None Game ------ Seed BeamDiametricRedirector Manual? 0 Play Time 02:51:40 Cumulative 283.9 hours Start 2021.02.11 @ 14:47:04 End 2021.02.11 @ 17:46:28 Sessions 1 Manual Loads 0 Difficulty Rogue Special Mode None Game No. 245 Rogue 245 Adventurer 0 Explorer 0 Win Type - Total 1 Types 0/0/0/1/0/0/0/0/0 Lore% 64 Gallery% 75 Achievement% 58 Wizard Run 0 Options --------- ASCII 0 Keyboard 1 Movement Numpad Keybinds 0 Fullscreen 1 Font 12/Terminus Map View 83x54 Tactical HUD 1 Map Filters NONE Filters NONE Steam 1 RUN: 0d9d129a-8c11-4ad2-982b-1c8bb5c9ba7a